{"text_format":"3","workbook":"xlsx","n_sheets":9,"sheets":["Mode d'emploi","Synthèse","E1","E2","E3","E4","E5","E6","E7"],"not_rendered":{"defined_names":7},"read":"whole","date_system":"1900"}

{"sheet":"Mode d'emploi","index":0,"n_rows":22,"n_cols":7,"rows_kept":22,"merged":[[0,1,0,2],[1,1,1,4],[3,2,3,4],[4,2,4,4],[8,3,8,11],[9,3,9,11],[10,3,10,11],[11,3,11,6]]}
[null,"BTS CRSA – Session ",null,2020]
[null,"Sous-épreuve E62 : REALISATION D'UN PROJET"]
[]
[null,"Nom du projet :","Etablissement de formation : "]
[null,null,"Lycée Jules HAAG Besançon"]
[]
[]
[null,"Nom des étudiants",{"$nulls":4},"MODE d'emploi"]
["E1","ÉTUDIANT 1",null,"\nCompléter l'année de la session, le nom du lycée, le nom du projet, les noms des étudiants et les noms des professeurs. "]
["E2","ÉTUDIANT 2",null,"Se rendre sur les différentes fiches individuelles et compléter la colonne description du travail à réaliser par l'étudiant."]
["E3","ÉTUDIANT 3",null,"La fiche synthèse se complétera automatiquement"]
["E4","ÉTUDIANT 4"]
["E5","ÉTUDIANT 5"]
["E6","ÉTUDIANT 6"]
["E7","ÉTUDIANT 7"]
[]
[]
[null,"Équipe pédagogique"]
[null,"EL-OUKAF Saïd"]
[null,"DUPLAND Gil"]
[null,"ROCCA Gilles"]
[null,"GAY Emmanuel"]

{"sheet":"Synthèse","index":1,"n_rows":44,"n_cols":13,"rows_kept":44,"merged":[[0,0,0,3],[0,4,0,6],[0,7,0,10],[1,0,1,2],[1,3,1,10],[2,0,2,2],[2,3,2,10],[3,0,3,3],[4,0,10,0],[4,1,4,3],[5,1,5,3],[6,1,6,3],[7,1,7,3],[8,1,8,3],[9,1,9,3],[10,1,10,3],[11,0,29,0],[11,1,11,3],[12,1,12,3],[13,1,13,3],[14,1,14,3],[15,1,15,3],[16,1,16,3],[17,1,17,3],[18,1,18,3],[18,12,23,12],[19,1,19,3],[20,1,20,3],[21,1,21,3],[22,1,22,3],[23,1,23,3],[24,1,24,3],[25,1,25,3],[26,1,26,3],[27,1,27,3],[28,1,28,3],[29,1,29,3],[30,0,32,0],[30,1,30,3],[31,1,31,3],[32,1,32,3],[33,0,37,0],[33,1,33,3],[34,1,34,3],[35,1,35,3],[36,1,36,3],[37,1,37,3],[39,0,39,10],[40,1,40,10],[41,1,41,10],[42,1,42,10],[43,1,43,10]]}
["BTS CRSA –  Fiche de répartition des tâches  \nSous-épreuve E62 : REALISATION D’UN PROJET                                                    \n",{"$nulls":3},"Session",null,null,{"$f":"'Mode d''emploi'!D1","v":2020}]
["Établissement de formation :",null,null,"Intitulé du projet : "]
[{"$f":"'Mode d''emploi'!C5","v":"Lycée Jules HAAG Besançon"},null,null,{"$f":"'Mode d''emploi'!B5","v":0}]
["Proposition de répartition des tâches entre les étudiants",{"$nulls":3},{"$f":"'Mode d''emploi'!B9","v":"ÉTUDIANT 1"},{"$f":"'Mode d''emploi'!B10","v":"ÉTUDIANT 2"},{"$f":"'Mode d''emploi'!B11","v":"ÉTUDIANT 3"},{"$f":"'Mode d''emploi'!B12","v":"ÉTUDIANT 4"},{"$f":"'Mode d''emploi'!B13","v":"ÉTUDIANT 5"},{"$f":"'Mode d''emploi'!B14","v":"ÉTUDIANT 6"},{"$f":"'Mode d''emploi'!B15","v":"ÉTUDIANT 7"}]
["C17 Élaborer tout ou partie du dossier de réalisation, du dossier de tests et du dossier système remis au client","Établir les mises en plan",null,null,{"$f":"IF('E1'!D5>\"\",\"x\",\"\")","v":""},{"$f":"IF('E2'!D5>\"\",\"x\",\"\")","v":""},{"$f":"IF('E3'!D5>\"\",\"x\",\"\")","v":""},{"$f":"IF('E4'!D5>\"\",\"x\",\"\")","v":""},{"$f":"IF('E5'!D5>\"\",\"x\",\"\")","v":""},{"$f":"IF('E6'!D5>\"\",\"x\",\"\")","v":""},{"$f":"IF('E7'!D5>\"\",\"x\",\"\")","v":""}]
[null,"Réaliser la cotation dimensionnelle, géométrique d’une pièce extraite d’un sous-ensemble",null,null,{"$f":"IF('E1'!D6>\"\",\"x\",\"\")","v":""},{"$f":"IF('E2'!D6>\"\",\"x\",\"\")","v":""},{"$f":"IF('E3'!D6>\"\",\"x\",\"\")","v":""},{"$f":"IF('E4'!D6>\"\",\"x\",\"\")","v":""},{"$f":"IF('E5'!D6>\"\",\"x\",\"\")","v":""},{"$f":"IF('E6'!D6>\"\",\"x\",\"\")","v":""},{"$f":"IF('E7'!D6>\"\",\"x\",\"\")","v":""}]
[null,"Établir les procédures de tests",null,null,{"$f":"IF('E1'!D7>\"\",\"x\",\"\")","v":""},{"$f":"IF('E2'!D7>\"\",\"x\",\"\")","v":""},{"$f":"IF('E3'!D7>\"\",\"x\",\"\")","v":""},{"$f":"IF('E4'!D7>\"\",\"x\",\"\")","v":""},{"$f":"IF('E5'!D7>\"\",\"x\",\"\")","v":""},{"$f":"IF('E6'!D7>\"\",\"x\",\"\")","v":""},{"$f":"IF('E7'!D7>\"\",\"x\",\"\")","v":""}]
[null,"Établir les documents d’installation et d’intégration sur le site",null,null,{"$f":"IF('E1'!D8>\"\",\"x\",\"\")","v":""},{"$f":"IF('E2'!D8>\"\",\"x\",\"\")","v":""},{"$f":"IF('E3'!D8>\"\",\"x\",\"\")","v":""},{"$f":"IF('E4'!D8>\"\",\"x\",\"\")","v":""},{"$f":"IF('E5'!D8>\"\",\"x\",\"\")","v":""},{"$f":"IF('E6'!D8>\"\",\"x\",\"\")","v":""},{"$f":"IF('E7'!D8>\"\",\"x\",\"\")","v":""}]
[null,"Élaborer le dossier de réalisation",null,null,{"$f":"IF('E1'!D9>\"\",\"x\",\"\")","v":""},{"$f":"IF('E2'!D9>\"\",\"x\",\"\")","v":""},{"$f":"IF('E3'!D9>\"\",\"x\",\"\")","v":""},{"$f":"IF('E4'!D9>\"\",\"x\",\"\")","v":""},{"$f":"IF('E5'!D9>\"\",\"x\",\"\")","v":""},{"$f":"IF('E6'!D9>\"\",\"x\",\"\")","v":""},{"$f":"IF('E7'!D9>\"\",\"x\",\"\")","v":""},null,"Tache obligatoirement réalisée par l'érudiant"]
[null,"Élaborer le dossier d'exploitation",null,null,{"$f":"IF('E1'!D10>\"\",\"x\",\"\")","v":""},{"$f":"IF('E2'!D10>\"\",\"x\",\"\")","v":""},{"$f":"IF('E3'!D10>\"\",\"x\",\"\")","v":""},{"$f":"IF('E4'!D10>\"\",\"x\",\"\")","v":""},{"$f":"IF('E5'!D10>\"\",\"x\",\"\")","v":""},{"$f":"IF('E6'!D10>\"\",\"x\",\"\")","v":""},{"$f":"IF('E7'!D10>\"\",\"x\",\"\")","v":""}]
[null,"Élaborer le dossier de maintenance",null,null,{"$f":"IF('E1'!D11>\"\",\"x\",\"\")","v":""},{"$f":"IF('E2'!D11>\"\",\"x\",\"\")","v":""},{"$f":"IF('E3'!D11>\"\",\"x\",\"\")","v":""},{"$f":"IF('E4'!D11>\"\",\"x\",\"\")","v":""},{"$f":"IF('E5'!D11>\"\",\"x\",\"\")","v":""},{"$f":"IF('E6'!D11>\"\",\"x\",\"\")","v":""},{"$f":"IF('E7'!D11>\"\",\"x\",\"\")","v":""}]
["C18 Réaliser, tester, intégrer tout ou partie d’un système automatique","Lancer les approvisionnements des composants et des éléments sous-traités",null,null,{"$f":"IF('E1'!D12>\"\",\"x\",\"\")","v":""},{"$f":"IF('E2'!D12>\"\",\"x\",\"\")","v":""},{"$f":"IF('E3'!D12>\"\",\"x\",\"\")","v":""},{"$f":"IF('E4'!D12>\"\",\"x\",\"\")","v":""},{"$f":"IF('E5'!D12>\"\",\"x\",\"\")","v":""},{"$f":"IF('E6'!D12>\"\",\"x\",\"\")","v":""},{"$f":"IF('E7'!D12>\"\",\"x\",\"\")","v":""}]
[null,"Réceptionner et vérifier la conformité des réalisations internes ou sous-traitées",null,null,{"$f":"IF('E1'!D13>\"\",\"x\",\"\")","v":""},{"$f":"IF('E2'!D13>\"\",\"x\",\"\")","v":""},{"$f":"IF('E3'!D13>\"\",\"x\",\"\")","v":""},{"$f":"IF('E4'!D13>\"\",\"x\",\"\")","v":""},{"$f":"IF('E5'!D13>\"\",\"x\",\"\")","v":""},{"$f":"IF('E6'!D13>\"\",\"x\",\"\")","v":""},{"$f":"IF('E7'!D13>\"\",\"x\",\"\")","v":""}]
[null,"Réaliser des opérations de fabrication",null,null,{"$f":"IF('E1'!D14>\"\",\"x\",\"\")","v":""},{"$f":"IF('E2'!D14>\"\",\"x\",\"\")","v":""},{"$f":"IF('E3'!D14>\"\",\"x\",\"\")","v":""},{"$f":"IF('E4'!D14>\"\",\"x\",\"\")","v":""},{"$f":"IF('E5'!D14>\"\",\"x\",\"\")","v":""},{"$f":"IF('E6'!D14>\"\",\"x\",\"\")","v":""},{"$f":"IF('E7'!D14>\"\",\"x\",\"\")","v":""}]
[null,"Réaliser un assemblage d'éléments",null,null,{"$f":"IF('E1'!D15>\"\",\"x\",\"\")","v":""},{"$f":"IF('E2'!D15>\"\",\"x\",\"\")","v":""},{"$f":"IF('E3'!D15>\"\",\"x\",\"\")","v":""},{"$f":"IF('E4'!D15>\"\",\"x\",\"\")","v":""},{"$f":"IF('E5'!D15>\"\",\"x\",\"\")","v":""},{"$f":"IF('E6'!D15>\"\",\"x\",\"\")","v":""},{"$f":"IF('E7'!D15>\"\",\"x\",\"\")","v":""}]
[null,"Implanter les constituants",null,null,{"$f":"IF('E1'!D16>\"\",\"x\",\"\")","v":""},{"$f":"IF('E2'!D16>\"\",\"x\",\"\")","v":""},{"$f":"IF('E3'!D16>\"\",\"x\",\"\")","v":""},{"$f":"IF('E4'!D16>\"\",\"x\",\"\")","v":""},{"$f":"IF('E5'!D16>\"\",\"x\",\"\")","v":""},{"$f":"IF('E6'!D16>\"\",\"x\",\"\")","v":""},{"$f":"IF('E7'!D16>\"\",\"x\",\"\")","v":""}]
[null,"Réaliser les câblages et raccordements",null,null,{"$f":"IF('E1'!D17>\"\",\"x\",\"\")","v":""},{"$f":"IF('E2'!D17>\"\",\"x\",\"\")","v":""},{"$f":"IF('E3'!D17>\"\",\"x\",\"\")","v":""},{"$f":"IF('E4'!D17>\"\",\"x\",\"\")","v":""},{"$f":"IF('E5'!D17>\"\",\"x\",\"\")","v":""},{"$f":"IF('E6'!D17>\"\",\"x\",\"\")","v":""},{"$f":"IF('E7'!D17>\"\",\"x\",\"\")","v":""}]
[null,"Réaliser une recette partielle du câblage et des raccordements",null,null,{"$f":"IF('E1'!D18>\"\",\"x\",\"\")","v":""},{"$f":"IF('E2'!D18>\"\",\"x\",\"\")","v":""},{"$f":"IF('E3'!D18>\"\",\"x\",\"\")","v":""},{"$f":"IF('E4'!D18>\"\",\"x\",\"\")","v":""},{"$f":"IF('E5'!D18>\"\",\"x\",\"\")","v":""},{"$f":"IF('E6'!D18>\"\",\"x\",\"\")","v":""},{"$f":"IF('E7'!D18>\"\",\"x\",\"\")","v":""}]
[null,"Configurer un contrôleur d’automatisme programmable, un réseau, une interface de dialogue homme - système, un système de supervision",null,null,{"$f":"IF('E1'!D19>\"\",\"x\",\"\")","v":""},{"$f":"IF('E2'!D19>\"\",\"x\",\"\")","v":""},{"$f":"IF('E3'!D19>\"\",\"x\",\"\")","v":""},{"$f":"IF('E4'!D19>\"\",\"x\",\"\")","v":""},{"$f":"IF('E5'!D19>\"\",\"x\",\"\")","v":""},{"$f":"IF('E6'!D19>\"\",\"x\",\"\")","v":""},{"$f":"IF('E7'!D19>\"\",\"x\",\"\")","v":""},null,"Une de ces trois tâches est obligatoirement réalisée par l'érudiant"]
[null,"Configurer un composant d’automatisme assurant une fonction dédiée",null,null,{"$f":"IF('E1'!D20>\"\",\"x\",\"\")","v":""},{"$f":"IF('E2'!D20>\"\",\"x\",\"\")","v":""},{"$f":"IF('E3'!D20>\"\",\"x\",\"\")","v":""},{"$f":"IF('E4'!D20>\"\",\"x\",\"\")","v":""},{"$f":"IF('E5'!D20>\"\",\"x\",\"\")","v":""},{"$f":"IF('E6'!D20>\"\",\"x\",\"\")","v":""},{"$f":"IF('E7'!D20>\"\",\"x\",\"\")","v":""}]
[null,"Réaliser un programme pour un contrôleur d’automatisme programmable",null,null,{"$f":"IF('E1'!D21>\"\",\"x\",\"\")","v":""},{"$f":"IF('E2'!D21>\"\",\"x\",\"\")","v":""},{"$f":"IF('E3'!D21>\"\",\"x\",\"\")","v":""},{"$f":"IF('E4'!D21>\"\",\"x\",\"\")","v":""},{"$f":"IF('E5'!D21>\"\",\"x\",\"\")","v":""},{"$f":"IF('E6'!D21>\"\",\"x\",\"\")","v":""},{"$f":"IF('E7'!D21>\"\",\"x\",\"\")","v":""}]
[null,"Effectuer la recette du programme en mode simulé",null,null,{"$f":"IF('E1'!D22>\"\",\"x\",\"\")","v":""},{"$f":"IF('E2'!D22>\"\",\"x\",\"\")","v":""},{"$f":"IF('E3'!D22>\"\",\"x\",\"\")","v":""},{"$f":"IF('E4'!D22>\"\",\"x\",\"\")","v":""},{"$f":"IF('E5'!D22>\"\",\"x\",\"\")","v":""},{"$f":"IF('E6'!D22>\"\",\"x\",\"\")","v":""},{"$f":"IF('E7'!D22>\"\",\"x\",\"\")","v":""}]
[null,"Mettre à disposition des données dans un format spécifié",null,null,{"$f":"IF('E1'!D27>\"\",\"x\",\"\")","v":""},{"$f":"IF('E2'!D27>\"\",\"x\",\"\")","v":""},{"$f":"IF('E3'!D27>\"\",\"x\",\"\")","v":""},{"$f":"IF('E4'!D27>\"\",\"x\",\"\")","v":""},{"$f":"IF('E5'!D27>\"\",\"x\",\"\")","v":""},{"$f":"IF('E6'!D27>\"\",\"x\",\"\")","v":""},{"$f":"IF('E7'!D27>\"\",\"x\",\"\")","v":""}]
[null,"Créer des vues pour l’exploitation du système automatique et pour les fonctions spécifiques",null,null,{"$f":"IF('E1'!D28>\"\",\"x\",\"\")","v":""},{"$f":"IF('E2'!D28>\"\",\"x\",\"\")","v":""},{"$f":"IF('E3'!D28>\"\",\"x\",\"\")","v":""},{"$f":"IF('E4'!D28>\"\",\"x\",\"\")","v":""},{"$f":"IF('E5'!D28>\"\",\"x\",\"\")","v":""},{"$f":"IF('E6'!D28>\"\",\"x\",\"\")","v":""},{"$f":"IF('E7'!D28>\"\",\"x\",\"\")","v":""}]
[null,"Associer, intégrer les assemblages",null,null,{"$f":"IF('E1'!D29>\"\",\"x\",\"\")","v":""},{"$f":"IF('E2'!D29>\"\",\"x\",\"\")","v":""},{"$f":"IF('E3'!D29>\"\",\"x\",\"\")","v":""},{"$f":"IF('E4'!D29>\"\",\"x\",\"\")","v":""},{"$f":"IF('E5'!D29>\"\",\"x\",\"\")","v":""},{"$f":"IF('E6'!D29>\"\",\"x\",\"\")","v":""},{"$f":"IF('E7'!D29>\"\",\"x\",\"\")","v":""}]
[null,"Réaliser les tests hors énergie",null,null,{"$f":"IF('E1'!D30>\"\",\"x\",\"\")","v":""},{"$f":"IF('E2'!D30>\"\",\"x\",\"\")","v":""},{"$f":"IF('E3'!D30>\"\",\"x\",\"\")","v":""},{"$f":"IF('E4'!D30>\"\",\"x\",\"\")","v":""},{"$f":"IF('E5'!D30>\"\",\"x\",\"\")","v":""},{"$f":"IF('E6'!D30>\"\",\"x\",\"\")","v":""},{"$f":"IF('E7'!D30>\"\",\"x\",\"\")","v":""}]
[null,"Intégrer des programmes hors ligne",null,null,{"$f":"IF('E1'!D31>\"\",\"x\",\"\")","v":""},{"$f":"IF('E2'!D31>\"\",\"x\",\"\")","v":""},{"$f":"IF('E3'!D31>\"\",\"x\",\"\")","v":""},{"$f":"IF('E4'!D31>\"\",\"x\",\"\")","v":""},{"$f":"IF('E5'!D31>\"\",\"x\",\"\")","v":""},{"$f":"IF('E6'!D31>\"\",\"x\",\"\")","v":""},{"$f":"IF('E7'!D31>\"\",\"x\",\"\")","v":""}]
[null,"Réaliser les tests sous énergies",null,null,{"$f":"IF('E1'!D32>\"\",\"x\",\"\")","v":""},{"$f":"IF('E2'!D32>\"\",\"x\",\"\")","v":""},{"$f":"IF('E3'!D32>\"\",\"x\",\"\")","v":""},{"$f":"IF('E4'!D32>\"\",\"x\",\"\")","v":""},{"$f":"IF('E5'!D32>\"\",\"x\",\"\")","v":""},{"$f":"IF('E6'!D32>\"\",\"x\",\"\")","v":""},{"$f":"IF('E7'!D32>\"\",\"x\",\"\")","v":""}]
[null,"Installer le système chez le client",null,null,{"$f":"IF('E1'!D33>\"\",\"x\",\"\")","v":""},{"$f":"IF('E2'!D33>\"\",\"x\",\"\")","v":""},{"$f":"IF('E3'!D33>\"\",\"x\",\"\")","v":""},{"$f":"IF('E4'!D33>\"\",\"x\",\"\")","v":""},{"$f":"IF('E5'!D33>\"\",\"x\",\"\")","v":""},{"$f":"IF('E6'!D33>\"\",\"x\",\"\")","v":""},{"$f":"IF('E7'!D33>\"\",\"x\",\"\")","v":""}]
[null,"Réaliser une mise à niveau de matériels et logiciels sur un existant",null,null,{"$f":"IF('E1'!D34>\"\",\"x\",\"\")","v":""},{"$f":"IF('E2'!D34>\"\",\"x\",\"\")","v":""},{"$f":"IF('E3'!D34>\"\",\"x\",\"\")","v":""},{"$f":"IF('E4'!D34>\"\",\"x\",\"\")","v":""},{"$f":"IF('E5'!D34>\"\",\"x\",\"\")","v":""},{"$f":"IF('E6'!D34>\"\",\"x\",\"\")","v":""},{"$f":"IF('E7'!D34>\"\",\"x\",\"\")","v":""}]
["C19 Mettre en service\net valider la conformité\nd’une solution par\nrapport à son cahier\ndes charges ","Mettre en service",null,null,{"$f":"IF('E1'!D35>\"\",\"x\",\"\")","v":""},{"$f":"IF('E2'!D35>\"\",\"x\",\"\")","v":""},{"$f":"IF('E3'!D35>\"\",\"x\",\"\")","v":""},{"$f":"IF('E4'!D35>\"\",\"x\",\"\")","v":""},{"$f":"IF('E5'!D35>\"\",\"x\",\"\")","v":""},{"$f":"IF('E6'!D35>\"\",\"x\",\"\")","v":""},{"$f":"IF('E7'!D35>\"\",\"x\",\"\")","v":""}]
[null,"Effectuer les tests dynamiques de conformité",null,null,{"$f":"IF('E1'!D36>\"\",\"x\",\"\")","v":""},{"$f":"IF('E2'!D36>\"\",\"x\",\"\")","v":""},{"$f":"IF('E3'!D36>\"\",\"x\",\"\")","v":""},{"$f":"IF('E4'!D36>\"\",\"x\",\"\")","v":""},{"$f":"IF('E5'!D36>\"\",\"x\",\"\")","v":""},{"$f":"IF('E6'!D36>\"\",\"x\",\"\")","v":""},{"$f":"IF('E7'!D36>\"\",\"x\",\"\")","v":""}]
[null,"Mettre à jour les dossiers",null,null,{"$f":"IF('E1'!D37>\"\",\"x\",\"\")","v":""},{"$f":"IF('E2'!D37>\"\",\"x\",\"\")","v":""},{"$f":"IF('E3'!D37>\"\",\"x\",\"\")","v":""},{"$f":"IF('E4'!D37>\"\",\"x\",\"\")","v":""},{"$f":"IF('E5'!D37>\"\",\"x\",\"\")","v":""},{"$f":"IF('E6'!D37>\"\",\"x\",\"\")","v":""},{"$f":"IF('E7'!D37>\"\",\"x\",\"\")","v":""}]
["C21 Rendre compte sur\nles dispositions prises\nen matière de sécurité\net de développement\ndurable","Identifier les effluents, les déchets et les polluants d’un existant",null,null,{"$f":"IF('E1'!D38>\"\",\"x\",\"\")","v":""},{"$f":"IF('E2'!D38>\"\",\"x\",\"\")","v":""},{"$f":"IF('E3'!D38>\"\",\"x\",\"\")","v":""},{"$f":"IF('E4'!D38>\"\",\"x\",\"\")","v":""},{"$f":"IF('E5'!D38>\"\",\"x\",\"\")","v":""},{"$f":"IF('E6'!D38>\"\",\"x\",\"\")","v":""},{"$f":"IF('E7'!D38>\"\",\"x\",\"\")","v":""}]
[null,"Déterminer les mesures de prévention ou de protection",null,null,{"$f":"IF('E1'!D39>\"\",\"x\",\"\")","v":""},{"$f":"IF('E2'!D39>\"\",\"x\",\"\")","v":""},{"$f":"IF('E3'!D39>\"\",\"x\",\"\")","v":""},{"$f":"IF('E4'!D39>\"\",\"x\",\"\")","v":""},{"$f":"IF('E5'!D39>\"\",\"x\",\"\")","v":""},{"$f":"IF('E6'!D39>\"\",\"x\",\"\")","v":""},{"$f":"IF('E7'!D39>\"\",\"x\",\"\")","v":""}]
[null,"Appliquer les mesures de prévention ou de protection",null,null,{"$f":"IF('E1'!D40>\"\",\"x\",\"\")","v":""},{"$f":"IF('E2'!D40>\"\",\"x\",\"\")","v":""},{"$f":"IF('E3'!D40>\"\",\"x\",\"\")","v":""},{"$f":"IF('E4'!D40>\"\",\"x\",\"\")","v":""},{"$f":"IF('E5'!D40>\"\",\"x\",\"\")","v":""},{"$f":"IF('E6'!D40>\"\",\"x\",\"\")","v":""},{"$f":"IF('E7'!D40>\"\",\"x\",\"\")","v":""}]
[null,"Identifier les phénomènes dangereux et les situations dangereuses",null,null,{"$f":"IF('E1'!D41>\"\",\"x\",\"\")","v":""},{"$f":"IF('E2'!D41>\"\",\"x\",\"\")","v":""},{"$f":"IF('E3'!D41>\"\",\"x\",\"\")","v":""},{"$f":"IF('E4'!D41>\"\",\"x\",\"\")","v":""},{"$f":"IF('E5'!D41>\"\",\"x\",\"\")","v":""},{"$f":"IF('E6'!D41>\"\",\"x\",\"\")","v":""},{"$f":"IF('E7'!D41>\"\",\"x\",\"\")","v":""},null,"Tache obligatoirement réalisée par l'érudiant"]
[null,"Évaluer les impacts environnementaux d’une solution envisagée",null,null,{"$f":"IF('E1'!D42>\"\",\"x\",\"\")","v":""},{"$f":"IF('E2'!D42>\"\",\"x\",\"\")","v":""},{"$f":"IF('E3'!D42>\"\",\"x\",\"\")","v":""},{"$f":"IF('E4'!D42>\"\",\"x\",\"\")","v":""},{"$f":"IF('E5'!D42>\"\",\"x\",\"\")","v":""},{"$f":"IF('E6'!D42>\"\",\"x\",\"\")","v":""},{"$f":"IF('E7'!D42>\"\",\"x\",\"\")","v":""}]
[]
["Noms et signatures des membres de l’équipe pédagogique : "]
[null,{"$f":"'Mode d''emploi'!B19","v":"EL-OUKAF Saïd"}]
[null,{"$f":"'Mode d''emploi'!B20","v":"DUPLAND Gil"}]
[null,{"$f":"'Mode d''emploi'!B21","v":"ROCCA Gilles"}]
[null,{"$f":"'Mode d''emploi'!B22","v":"GAY Emmanuel"}]

{"sheet":"E1","index":2,"n_rows":48,"n_cols":6,"rows_kept":48,"merged":[[0,1,0,3],[1,4,2,4],[4,1,10,1],[11,1,21,1],[22,1,22,3],[23,4,24,4],[26,1,33,1],[34,1,36,1],[37,1,41,1],[42,1,42,4]]}
[null,"BTS CRSA –  Fiche prévisionnelle de répartition des tâches détaillées \nSous-épreuve E62 : CONDUITE ET REALISATION D’UN PROJET                                                    \n",null,null,"Projet :"]
[null,"Session :","NOM et PRENOM du candidat :","Etablissement de formation : ",{"$f":"'Mode d''emploi'!B5","v":0}]
[null,{"$f":"'Mode d''emploi'!D1","v":2020},{"$f":"'Mode d''emploi'!B9","v":"ÉTUDIANT 1"},{"$f":"'Mode d''emploi'!C5","v":"Lycée Jules HAAG Besançon"}]
[null,"Compétence visée","Tâche ","Description du travail à réaliser par l’étudiant","Partie sous traitée ou réalisée par  une autre personne","Exemple de description"]
[null,"C17 Élaborer tout ou partie du dossier de réalisation, du dossier de tests et du dossier système remis au client","Établir les mises en plan",null,null,"Etablir les dessins d'ensemble du module de nom module\nEtablir les dessins d'ensemble du pupitre\nEtablir les dessins d'ensemble du bâti"]
[null,null,"Réaliser la cotation dimensionnelle, géométrique d’une pièce extraite d’un sous-ensemble",null,null,"Réaliser les dessins de définition des pièces du module de nom module\nRéaliser le dessin de définition du pupitre"]
[null,null,"Établir les procédures de tests",null,null,"Etablir les procédures de tests du module de nom module.\nRéaliser un prototype pour valider la solution technique"]
[null,null,"Établir les documents d’installation et d’intégration sur le site",null,null,"Etablir le dessin d'implantation de la machine dans son envirsonnement : génie civil (tranchées alimentation en énergie) travaux plomberie (évacuation d'eau, alimentation en eau)"]
[null,null,"Élaborer le dossier de réalisation",null,null,"Elaborer la partie schéma électrique\nElaborer la partie schéma pneumatique\nElaborer la partie synoptique et liste des variables\nElaborer la partie analyse des modes de marche\nElaborer la partie analyse du fonctionnement\nCréation du dossier machine avec tous les dessins d'ensemble, les dessins de définition, les devis, les schémas électriques, les documentations techniques des standards, les bordereaux de livraison\nElaborer le dossier de réalisation de ses activités\n"]
[null,null,"Élaborer le dossier d'exploitation",null,null,"Réaliser la notice d'utilisation de la machine"]
[null,null,"Élaborer le dossier de maintenance",null,null,"Elaborer le dossier de maintenance contenant les informations necessaires pour la maintenance de la machine (problèmes/solutions)."]
[null,"C18 Réaliser, tester, intégrer tout ou partie d’un système automatique","Lancer les approvisionnements des composants et des éléments sous-traités",null,null,"Lancer les approvisionnements des composants du module de nom module\nLancer les approvisionnements du pupitre\nLancer les approvisionnements des éléments sous-traitées du module de nom module\nLancer les approvisionnements des composants électriques\nLancer les approvisionnements des composants pneumatiques"]
[null,null,"Réceptionner et vérifier la conformité des réalisations internes ou sous-traitées",null,null,"Réceptionner et vérifier la conformité des pièces du module de nom module\nRéceptionner et vérifier la conformité du pupitre\nRéceptionner et vérifier la conformité du matériel électrique\nRéceptionner et vérifier la conformité du matériel pneumatique"]
[null,null,"Réaliser des opérations de fabrication",null,null,"Réaliser les pièces du module de nom module\nRéaliser le bâti\nRéaliser le pupitre"]
[null,null,"Réaliser un assemblage d’éléments",null,null,"Assembler les pièces du module de nom module"]
[null,null,"Implanter les constituants",null,null,"Implanter les composants de l’armoire électrique\nImplanter les composants du pupitre\nImplanter les composants pneumatiques (traitement d’air, distributeurs)"]
[null,null,"Réaliser les câblages et raccordements",null,null,"Réaliser le câblage de l’armoire électrique\nRéaliser le câblage pneumatique\nRéaliser le câblage du pupitre\nRéaliser le câblage électrique du module de nom module"]
[null,null,"Réaliser une recette partielle du câblage et des raccordements",null,null,"Réaliser les tests du câblage de l’armoire électrique \nRéaliser les tests du câblage pneumatique\nRéaliser les tests du câblage du pupitre\nRéaliser les tests du câblage du module de nom module"]
[null,null,"Configurer un contrôleur d’automatisme programmable, un réseau, une interface de dialogue homme - système, un système de supervision",null,null,"Configurer l’API\nConfigurer l’IHM"]
[null,null,"Configurer un composant d’automatisme assurant une fonction dédiée",null,null,"Configurer la carte d’entrée analogique\nConfigurer la carte de sortie analogique\nConfigurer la carte de comptage rapide\nConfigurer un variateur moteur"]
[null,null,"Réaliser un programme pour un contrôleur d’automatisme programmable",null,null,"Réaliser le programme de l’automate programmable\nRéaliser le programme de l’IHM"]
[null,null,"Effectuer la recette du programme en mode simulé",null,null,"Effectuer une simulation du programme de l’automate\nEffectuer une simulation du programme de l’IHM"]
[null,"BTS CRSA –  Fiche prévisionnelle de répartition des tâches détaillées \nSous-épreuve E62 : CONDUITE ET REALISATION D’UN PROJET                                                    \n",null,null,"Projet :"]
[null,"Session :","NOM et PRENOM du candidat :","Etablissement de formation : ",{"$f":"'Mode d''emploi'!B5","v":0}]
[null,{"$f":"'Mode d''emploi'!D1","v":2020},{"$f":"'Mode d''emploi'!B9","v":"ÉTUDIANT 1"},{"$f":"'Mode d''emploi'!C5","v":"Lycée Jules HAAG Besançon"}]
[null,"Compétence visée","Tâche ","Description du travail à réaliser par l’étudiant","Partie sous traitée ou réalisée par  une autre personne"]
[null,"C18 Réaliser, tester, intégrer tout ou partie d’un système automatique","Mettre à disposition des données dans un format spécifié",null,null,"Faire la liste des variables (tableau entrées/sorties) en indiquant leur type.\nTous les fichiers CAO, les schémas électriques, les schémas pneumatiques, les programmes seront sauvegardés au format natif des logiciels utilisés sur un dossier spécifique à la machine, sur le réseau de l'entreprise."]
[null,null,"Créer des vues pour l’exploitation du système automatique et pour les fonctions spécifiques",null,null,"Réaliser le programme de l’IHM\nRéaliser le synoptique de la machine\n"]
[null,null,"Associer, intégrer les assemblages",null,null,"Intégrer le module de nom module sur la machine"]
[null,null,"Réaliser les tests hors énergie",null,null,"Tester le module de nom module hors énergie"]
[null,null,"Intégrer des programmes hors ligne"]
[null,null,"Réaliser les tests sous énergies",null,null,"Réaliser la mise sous tension progressive de l'armoire électrique, tester les mouvements de chaque actionneurs, le fonctionnement des capteurs"]
[null,null,"Installer le système chez le client",null,null,"Livrer et installer la machine"]
[null,null,"Réaliser une mise à niveau de matériels et logiciels sur un existant"]
[null,"C19 Mettre en service\net valider la conformité\nd’une solution par\nrapport à son cahier\ndes charges\n","Mettre en service",null,null,"Mettre en service la machine"]
[null,null,"Effectuer les tests dynamiques de conformité",null,null,"Tester la machine en mode continu sur une période de 8h\nVérifier la cadence\nVérifier les exigences de qualité\nMesurer le bruit"]
[null,null,"Mettre à jour les dossiers",null,null,"Compléter le dossier machine en fonction des modifications effectuées lors de la mise au point\nMettre à jour le dossier technique (partie schéma électrique)\nMettre à jour le dossier technique (partie schéma pneumatique)\nMettre à jour le dossier technique (partie synoptique et liste des variables)\nMettre à jour le dossier d’exploitation\nMettre à jour le dossier maintenance"]
[null,"C21 Rendre compte sur\nles dispositions prises\nen matière de sécurité\net de développement\ndurable","Identifier les effluents, les déchets et les polluants d’un existant",null,null,"Identifier les phénomènes dangereux et les situations dangereuses du module de nom module"]
[null,null,"Déterminer les mesures de prévention ou de protection",null,null,"Déterminer les mesures de prévention ou de protection du module de nom module"]
[null,null,"Appliquer les mesures de prévention ou de protection",null,null,"Appliquer les mesures de prévention ou de protection du module de nom module\nRéaliser le câblage des arrets d'urgence, des gâches de portes"]
[null,null,"Identifier les phénomènes dangereux et les situations dangereuses",null,null,"Effectuer une analyse de risques "]
[null,null,"Évaluer les impacts environnementaux d’une solution envisagée"]
[null,"Chaque compétence C17, C18, C19, C21 doit OBLIGATOIREMENT être développée et correspondre à des tâches réelles confiées au candidat."]
[]
[null,"Remarque :"]
[null,"Toutes les fiches devront être mises à la disposition de la commission d’interrogation pour consultation."]
[]
[null,"\n"]

{"sheet":"E2","index":3,"n_rows":48,"n_cols":6,"rows_kept":48,"merged":[[0,1,0,3],[1,4,2,4],[4,1,10,1],[11,1,21,1],[22,1,22,3],[23,4,24,4],[26,1,33,1],[34,1,36,1],[37,1,41,1],[42,1,42,4]]}
[null,"BTS CRSA –  Fiche prévisionnelle de répartition des tâches détaillées \nSous-épreuve E62 : CONDUITE ET REALISATION D’UN PROJET                                                    \n",null,null,"Projet :"]
[null,"Session :","NOM et PRENOM du candidat :","Etablissement de formation : ",{"$f":"'Mode d''emploi'!B5","v":0}]
[null,{"$f":"'Mode d''emploi'!D1","v":2020},{"$f":"'Mode d''emploi'!B10","v":"ÉTUDIANT 2"},{"$f":"'Mode d''emploi'!C5","v":"Lycée Jules HAAG Besançon"}]
[null,"Compétence visée","Tâche ","Description du travail à réaliser par l’étudiant","Partie sous traitée ou réalisée par  une autre personne","Exemple de description"]
[null,"C17 Élaborer tout ou partie du dossier de réalisation, du dossier de tests et du dossier système remis au client","Établir les mises en plan",null,null,"Etablir les dessins d'ensemble du module de nom module\nEtablir les dessins d'ensemble du pupitre\nEtablir les dessins d'ensemble du bâti"]
[null,null,"Réaliser la cotation dimensionnelle, géométrique d’une pièce extraite d’un sous-ensemble",null,null,"Réaliser les dessins de définition des pièces du module de nom module\nRéaliser le dessin de définition du pupitre"]
[null,null,"Établir les procédures de tests",null,null,"Etablir les procédures de tests du module de nom module.\nRéaliser un prototype pour valider la solution technique"]
[null,null,"Établir les documents d’installation et d’intégration sur le site",null,null,"Etablir le dessin d'implantation de la machine dans son envirsonnement : génie civil (tranchées alimentation en énergie) travaux plomberie (évacuation d'eau, alimentation en eau)"]
[null,null,"Élaborer le dossier de réalisation",null,null,"Elaborer la partie schéma électrique\nElaborer la partie schéma pneumatique\nElaborer la partie synoptique et liste des variables\nElaborer la partie analyse des modes de marche\nElaborer la partie analyse du fonctionnement\nCréation du dossier machine avec tous les dessins d'ensemble, les dessins de définition, les devis, les schémas électriques, les documentations techniques des standards, les bordereaux de livraison\nElaborer le dossier de réalisation de ses activités\n"]
[null,null,"Élaborer le dossier d'exploitation",null,null,"Réaliser la notice d'utilisation de la machine"]
[null,null,"Élaborer le dossier de maintenance",null,null,"Elaborer le dossier de maintenance contenant les informations necessaires pour la maintenance de la machine (problèmes/solutions)."]
[null,"C18 Réaliser, tester, intégrer tout ou partie d’un système automatique","Lancer les approvisionnements des composants et des éléments sous-traités",null,null,"Lancer les approvisionnements des composants du module de nom module\nLancer les approvisionnements du pupitre\nLancer les approvisionnements des éléments sous-traitées du module de nom module\nLancer les approvisionnements des composants électriques\nLancer les approvisionnements des composants pneumatiques"]
[null,null,"Réceptionner et vérifier la conformité des réalisations internes ou sous-traitées",null,null,"Réceptionner et vérifier la conformité des pièces du module de nom module\nRéceptionner et vérifier la conformité du pupitre\nRéceptionner et vérifier la conformité du matériel électrique\nRéceptionner et vérifier la conformité du matériel pneumatique"]
[null,null,"Réaliser des opérations de fabrication",null,null,"Réaliser les pièces du module de nom module\nRéaliser le bâti\nRéaliser le pupitre"]
[null,null,"Réaliser un assemblage d’éléments",null,null,"Assembler les pièces du module de nom module"]
[null,null,"Implanter les constituants",null,null,"Implanter les composants de l’armoire électrique\nImplanter les composants du pupitre\nImplanter les composants pneumatiques (traitement d’air, distributeurs)"]
[null,null,"Réaliser les câblages et raccordements",null,null,"Réaliser le câblage de l’armoire électrique\nRéaliser le câblage pneumatique\nRéaliser le câblage du pupitre\nRéaliser le câblage électrique du module de nom module"]
[null,null,"Réaliser une recette partielle du câblage et des raccordements",null,null,"Réaliser les tests du câblage de l’armoire électrique \nRéaliser les tests du câblage pneumatique\nRéaliser les tests du câblage du pupitre\nRéaliser les tests du câblage du module de nom module"]
[null,null,"Configurer un contrôleur d’automatisme programmable, un réseau, une interface de dialogue homme - système, un système de supervision",null,null,"Configurer l’API\nConfigurer l’IHM"]
[null,null,"Configurer un composant d’automatisme assurant une fonction dédiée",null,null,"Configurer la carte d’entrée analogique\nConfigurer la carte de sortie analogique\nConfigurer la carte de comptage rapide\nConfigurer un variateur moteur"]
[null,null,"Réaliser un programme pour un contrôleur d’automatisme programmable",null,null,"Réaliser le programme de l’automate programmable\nRéaliser le programme de l’IHM"]
[null,null,"Effectuer la recette du programme en mode simulé",null,null,"Effectuer une simulation du programme de l’automate\nEffectuer une simulation du programme de l’IHM"]
[null,"BTS CRSA –  Fiche prévisionnelle de répartition des tâches détaillées \nSous-épreuve E62 : CONDUITE ET REALISATION D’UN PROJET                                                    \n",null,null,"Projet :"]
[null,"Session :","NOM et PRENOM du candidat :","Etablissement de formation : ",{"$f":"'Mode d''emploi'!B5","v":0}]
[null,{"$f":"'Mode d''emploi'!D1","v":2020},{"$f":"'Mode d''emploi'!B10","v":"ÉTUDIANT 2"},{"$f":"'Mode d''emploi'!C5","v":"Lycée Jules HAAG Besançon"}]
[null,"Compétence visée","Tâche ","Description du travail à réaliser par l’étudiant","Partie sous traitée ou réalisée par  une autre personne"]
[null,"C18 Réaliser, tester, intégrer tout ou partie d’un système automatique","Mettre à disposition des données dans un format spécifié",null,null,"Faire la liste des variables (tableau entrées/sorties) en indiquant leur type.\nTous les fichiers CAO, les schémas électriques, les schémas pneumatiques, les programmes seront sauvegardés au format natif des logiciels utilisés sur un dossier spécifique à la machine, sur le réseau de l'entreprise."]
[null,null,"Créer des vues pour l’exploitation du système automatique et pour les fonctions spécifiques",null,null,"Réaliser le programme de l’IHM\nRéaliser le synoptique de la machine\n"]
[null,null,"Associer, intégrer les assemblages",null,null,"Intégrer le module de nom module sur la machine"]
[null,null,"Réaliser les tests hors énergie",null,null,"Tester le module de nom module hors énergie"]
[null,null,"Intégrer des programmes hors ligne"]
[null,null,"Réaliser les tests sous énergies",null,null,"Réaliser la mise sous tension progressive de l'armoire électrique, tester les mouvements de chaque actionneurs, le fonctionnement des capteurs"]
[null,null,"Installer le système chez le client",null,null,"Livrer et installer la machine"]
[null,null,"Réaliser une mise à niveau de matériels et logiciels sur un existant"]
[null,"C19 Mettre en service\net valider la conformité\nd’une solution par\nrapport à son cahier\ndes charges\n","Mettre en service",null,null,"Mettre en service la machine"]
[null,null,"Effectuer les tests dynamiques de conformité",null,null,"Tester la machine en mode continu sur une période de 8h\nVérifier la cadence\nVérifier les exigences de qualité\nMesurer le bruit"]
[null,null,"Mettre à jour les dossiers",null,null,"Compléter le dossier machine en fonction des modifications effectuées lors de la mise au point\nMettre à jour le dossier technique (partie schéma électrique)\nMettre à jour le dossier technique (partie schéma pneumatique)\nMettre à jour le dossier technique (partie synoptique et liste des variables)\nMettre à jour le dossier d’exploitation\nMettre à jour le dossier maintenance"]
[null,"C21 Rendre compte sur\nles dispositions prises\nen matière de sécurité\net de développement\ndurable","Identifier les effluents, les déchets et les polluants d’un existant",null,null,"Identifier les phénomènes dangereux et les situations dangereuses du module de nom module"]
[null,null,"Déterminer les mesures de prévention ou de protection",null,null,"Déterminer les mesures de prévention ou de protection du module de nom module"]
[null,null,"Appliquer les mesures de prévention ou de protection",null,null,"Appliquer les mesures de prévention ou de protection du module de nom module\nRéaliser le câblage des arrets d'urgence, des gâches de portes"]
[null,null,"Identifier les phénomènes dangereux et les situations dangereuses",null,null,"Effectuer une analyse de risques "]
[null,null,"Évaluer les impacts environnementaux d’une solution envisagée"]
[null,"Chaque compétence C17, C18, C19, C21 doit OBLIGATOIREMENT être développée et correspondre à des tâches réelles confiées au candidat."]
[]
[null,"Remarque :"]
[null,"Toutes les fiches devront être mises à la disposition de la commission d’interrogation pour consultation."]
[]
[null,"\n"]

{"sheet":"E3","index":4,"n_rows":48,"n_cols":6,"rows_kept":48,"merged":[[0,1,0,3],[1,4,2,4],[4,1,10,1],[11,1,21,1],[22,1,22,3],[23,4,24,4],[26,1,33,1],[34,1,36,1],[37,1,41,1],[42,1,42,4]]}
[null,"BTS CRSA –  Fiche prévisionnelle de répartition des tâches détaillées \nSous-épreuve E62 : CONDUITE ET REALISATION D’UN PROJET                                                    \n",null,null,"Projet :"]
[null,"Session :","NOM et PRENOM du candidat :","Etablissement de formation : ",{"$f":"'Mode d''emploi'!B5","v":0}]
[null,{"$f":"'Mode d''emploi'!D1","v":2020},{"$f":"'Mode d''emploi'!B11","v":"ÉTUDIANT 3"},{"$f":"'Mode d''emploi'!C5","v":"Lycée Jules HAAG Besançon"}]
[null,"Compétence visée","Tâche ","Description du travail à réaliser par l’étudiant","Partie sous traitée ou réalisée par  une autre personne","Exemple de description"]
[null,"C17 Élaborer tout ou partie du dossier de réalisation, du dossier de tests et du dossier système remis au client","Établir les mises en plan",null,null,"Etablir les dessins d'ensemble du module de nom module\nEtablir les dessins d'ensemble du pupitre\nEtablir les dessins d'ensemble du bâti"]
[null,null,"Réaliser la cotation dimensionnelle, géométrique d’une pièce extraite d’un sous-ensemble",null,null,"Réaliser les dessins de définition des pièces du module de nom module\nRéaliser le dessin de définition du pupitre"]
[null,null,"Établir les procédures de tests",null,null,"Etablir les procédures de tests du module de nom module.\nRéaliser un prototype pour valider la solution technique"]
[null,null,"Établir les documents d’installation et d’intégration sur le site",null,null,"Etablir le dessin d'implantation de la machine dans son envirsonnement : génie civil (tranchées alimentation en énergie) travaux plomberie (évacuation d'eau, alimentation en eau)"]
[null,null,"Élaborer le dossier de réalisation",null,null,"Elaborer la partie schéma électrique\nElaborer la partie schéma pneumatique\nElaborer la partie synoptique et liste des variables\nElaborer la partie analyse des modes de marche\nElaborer la partie analyse du fonctionnement\nCréation du dossier machine avec tous les dessins d'ensemble, les dessins de définition, les devis, les schémas électriques, les documentations techniques des standards, les bordereaux de livraison\nElaborer le dossier de réalisation de ses activités\n"]
[null,null,"Élaborer le dossier d'exploitation",null,null,"Réaliser la notice d'utilisation de la machine"]
[null,null,"Élaborer le dossier de maintenance",null,null,"Elaborer le dossier de maintenance contenant les informations necessaires pour la maintenance de la machine (problèmes/solutions)."]
[null,"C18 Réaliser, tester, intégrer tout ou partie d’un système automatique","Lancer les approvisionnements des composants et des éléments sous-traités",null,null,"Lancer les approvisionnements des composants du module de nom module\nLancer les approvisionnements du pupitre\nLancer les approvisionnements des éléments sous-traitées du module de nom module\nLancer les approvisionnements des composants électriques\nLancer les approvisionnements des composants pneumatiques"]
[null,null,"Réceptionner et vérifier la conformité des réalisations internes ou sous-traitées",null,null,"Réceptionner et vérifier la conformité des pièces du module de nom module\nRéceptionner et vérifier la conformité du pupitre\nRéceptionner et vérifier la conformité du matériel électrique\nRéceptionner et vérifier la conformité du matériel pneumatique"]
[null,null,"Réaliser des opérations de fabrication",null,null,"Réaliser les pièces du module de nom module\nRéaliser le bâti\nRéaliser le pupitre"]
[null,null,"Réaliser un assemblage d’éléments",null,null,"Assembler les pièces du module de nom module"]
[null,null,"Implanter les constituants",null,null,"Implanter les composants de l’armoire électrique\nImplanter les composants du pupitre\nImplanter les composants pneumatiques (traitement d’air, distributeurs)"]
[null,null,"Réaliser les câblages et raccordements",null,null,"Réaliser le câblage de l’armoire électrique\nRéaliser le câblage pneumatique\nRéaliser le câblage du pupitre\nRéaliser le câblage électrique du module de nom module"]
[null,null,"Réaliser une recette partielle du câblage et des raccordements",null,null,"Réaliser les tests du câblage de l’armoire électrique \nRéaliser les tests du câblage pneumatique\nRéaliser les tests du câblage du pupitre\nRéaliser les tests du câblage du module de nom module"]
[null,null,"Configurer un contrôleur d’automatisme programmable, un réseau, une interface de dialogue homme - système, un système de supervision",null,null,"Configurer l’API\nConfigurer l’IHM"]
[null,null,"Configurer un composant d’automatisme assurant une fonction dédiée",null,null,"Configurer la carte d’entrée analogique\nConfigurer la carte de sortie analogique\nConfigurer la carte de comptage rapide\nConfigurer un variateur moteur"]
[null,null,"Réaliser un programme pour un contrôleur d’automatisme programmable",null,null,"Réaliser le programme de l’automate programmable\nRéaliser le programme de l’IHM"]
[null,null,"Effectuer la recette du programme en mode simulé",null,null,"Effectuer une simulation du programme de l’automate\nEffectuer une simulation du programme de l’IHM"]
[null,"BTS CRSA –  Fiche prévisionnelle de répartition des tâches détaillées \nSous-épreuve E62 : CONDUITE ET REALISATION D’UN PROJET                                                    \n",null,null,"Projet :"]
[null,"Session :","NOM et PRENOM du candidat :","Etablissement de formation : ",{"$f":"'Mode d''emploi'!B5","v":0}]
[null,{"$f":"'Mode d''emploi'!D1","v":2020},{"$f":"'Mode d''emploi'!B11","v":"ÉTUDIANT 3"},{"$f":"'Mode d''emploi'!C5","v":"Lycée Jules HAAG Besançon"}]
[null,"Compétence visée","Tâche ","Description du travail à réaliser par l’étudiant","Partie sous traitée ou réalisée par  une autre personne"]
[null,"C18 Réaliser, tester, intégrer tout ou partie d’un système automatique","Mettre à disposition des données dans un format spécifié",null,null,"Faire la liste des variables (tableau entrées/sorties) en indiquant leur type.\nTous les fichiers CAO, les schémas électriques, les schémas pneumatiques, les programmes seront sauvegardés au format natif des logiciels utilisés sur un dossier spécifique à la machine, sur le réseau de l'entreprise."]
[null,null,"Créer des vues pour l’exploitation du système automatique et pour les fonctions spécifiques",null,null,"Réaliser le programme de l’IHM\nRéaliser le synoptique de la machine\n"]
[null,null,"Associer, intégrer les assemblages",null,null,"Intégrer le module de nom module sur la machine"]
[null,null,"Réaliser les tests hors énergie",null,null,"Tester le module de nom module hors énergie"]
[null,null,"Intégrer des programmes hors ligne"]
[null,null,"Réaliser les tests sous énergies",null,null,"Réaliser la mise sous tension progressive de l'armoire électrique, tester les mouvements de chaque actionneurs, le fonctionnement des capteurs"]
[null,null,"Installer le système chez le client",null,null,"Livrer et installer la machine"]
[null,null,"Réaliser une mise à niveau de matériels et logiciels sur un existant"]
[null,"C19 Mettre en service\net valider la conformité\nd’une solution par\nrapport à son cahier\ndes charges\n","Mettre en service",null,null,"Mettre en service la machine"]
[null,null,"Effectuer les tests dynamiques de conformité",null,null,"Tester la machine en mode continu sur une période de 8h\nVérifier la cadence\nVérifier les exigences de qualité\nMesurer le bruit"]
[null,null,"Mettre à jour les dossiers",null,null,"Compléter le dossier machine en fonction des modifications effectuées lors de la mise au point\nMettre à jour le dossier technique (partie schéma électrique)\nMettre à jour le dossier technique (partie schéma pneumatique)\nMettre à jour le dossier technique (partie synoptique et liste des variables)\nMettre à jour le dossier d’exploitation\nMettre à jour le dossier maintenance"]
[null,"C21 Rendre compte sur\nles dispositions prises\nen matière de sécurité\net de développement\ndurable","Identifier les effluents, les déchets et les polluants d’un existant",null,null,"Identifier les phénomènes dangereux et les situations dangereuses du module de nom module"]
[null,null,"Déterminer les mesures de prévention ou de protection",null,null,"Déterminer les mesures de prévention ou de protection du module de nom module"]
[null,null,"Appliquer les mesures de prévention ou de protection",null,null,"Appliquer les mesures de prévention ou de protection du module de nom module\nRéaliser le câblage des arrets d'urgence, des gâches de portes"]
[null,null,"Identifier les phénomènes dangereux et les situations dangereuses",null,null,"Effectuer une analyse de risques "]
[null,null,"Évaluer les impacts environnementaux d’une solution envisagée"]
[null,"Chaque compétence C17, C18, C19, C21 doit OBLIGATOIREMENT être développée et correspondre à des tâches réelles confiées au candidat."]
[]
[null,"Remarque :"]
[null,"Toutes les fiches devront être mises à la disposition de la commission d’interrogation pour consultation."]
[]
[null,"\n"]

{"sheet":"E4","index":5,"n_rows":48,"n_cols":6,"rows_kept":48,"merged":[[0,1,0,3],[1,4,2,4],[4,1,10,1],[11,1,21,1],[22,1,22,3],[23,4,24,4],[26,1,33,1],[34,1,36,1],[37,1,41,1],[42,1,42,4]]}
[null,"BTS CRSA –  Fiche prévisionnelle de répartition des tâches détaillées \nSous-épreuve E62 : CONDUITE ET REALISATION D’UN PROJET                                                    \n",null,null,"Projet :"]
[null,"Session :","NOM et PRENOM du candidat :","Etablissement de formation : ",{"$f":"'Mode d''emploi'!B5","v":0}]
[null,{"$f":"'Mode d''emploi'!D1","v":2020},{"$f":"'Mode d''emploi'!B12","v":"ÉTUDIANT 4"},{"$f":"'Mode d''emploi'!C5","v":"Lycée Jules HAAG Besançon"}]
[null,"Compétence visée","Tâche ","Description du travail à réaliser par l’étudiant","Partie sous traitée ou réalisée par  une autre personne","Exemple de description"]
[null,"C17 Élaborer tout ou partie du dossier de réalisation, du dossier de tests et du dossier système remis au client","Établir les mises en plan",null,null,"Etablir les dessins d'ensemble du module de nom module\nEtablir les dessins d'ensemble du pupitre\nEtablir les dessins d'ensemble du bâti"]
[null,null,"Réaliser la cotation dimensionnelle, géométrique d’une pièce extraite d’un sous-ensemble",null,null,"Réaliser les dessins de définition des pièces du module de nom module\nRéaliser le dessin de définition du pupitre"]
[null,null,"Établir les procédures de tests",null,null,"Etablir les procédures de tests du module de nom module.\nRéaliser un prototype pour valider la solution technique"]
[null,null,"Établir les documents d’installation et d’intégration sur le site",null,null,"Etablir le dessin d'implantation de la machine dans son envirsonnement : génie civil (tranchées alimentation en énergie) travaux plomberie (évacuation d'eau, alimentation en eau)"]
[null,null,"Élaborer le dossier de réalisation",null,null,"Elaborer la partie schéma électrique\nElaborer la partie schéma pneumatique\nElaborer la partie synoptique et liste des variables\nElaborer la partie analyse des modes de marche\nElaborer la partie analyse du fonctionnement\nCréation du dossier machine avec tous les dessins d'ensemble, les dessins de définition, les devis, les schémas électriques, les documentations techniques des standards, les bordereaux de livraison\nElaborer le dossier de réalisation de ses activités\n"]
[null,null,"Élaborer le dossier d'exploitation",null,null,"Réaliser la notice d'utilisation de la machine"]
[null,null,"Élaborer le dossier de maintenance",null,null,"Elaborer le dossier de maintenance contenant les informations necessaires pour la maintenance de la machine (problèmes/solutions)."]
[null,"C18 Réaliser, tester, intégrer tout ou partie d’un système automatique","Lancer les approvisionnements des composants et des éléments sous-traités",null,null,"Lancer les approvisionnements des composants du module de nom module\nLancer les approvisionnements du pupitre\nLancer les approvisionnements des éléments sous-traitées du module de nom module\nLancer les approvisionnements des composants électriques\nLancer les approvisionnements des composants pneumatiques"]
[null,null,"Réceptionner et vérifier la conformité des réalisations internes ou sous-traitées",null,null,"Réceptionner et vérifier la conformité des pièces du module de nom module\nRéceptionner et vérifier la conformité du pupitre\nRéceptionner et vérifier la conformité du matériel électrique\nRéceptionner et vérifier la conformité du matériel pneumatique"]
[null,null,"Réaliser des opérations de fabrication",null,null,"Réaliser les pièces du module de nom module\nRéaliser le bâti\nRéaliser le pupitre"]
[null,null,"Réaliser un assemblage d’éléments",null,null,"Assembler les pièces du module de nom module"]
[null,null,"Implanter les constituants",null,null,"Implanter les composants de l’armoire électrique\nImplanter les composants du pupitre\nImplanter les composants pneumatiques (traitement d’air, distributeurs)"]
[null,null,"Réaliser les câblages et raccordements",null,null,"Réaliser le câblage de l’armoire électrique\nRéaliser le câblage pneumatique\nRéaliser le câblage du pupitre\nRéaliser le câblage électrique du module de nom module"]
[null,null,"Réaliser une recette partielle du câblage et des raccordements",null,null,"Réaliser les tests du câblage de l’armoire électrique \nRéaliser les tests du câblage pneumatique\nRéaliser les tests du câblage du pupitre\nRéaliser les tests du câblage du module de nom module"]
[null,null,"Configurer un contrôleur d’automatisme programmable, un réseau, une interface de dialogue homme - système, un système de supervision",null,null,"Configurer l’API\nConfigurer l’IHM"]
[null,null,"Configurer un composant d’automatisme assurant une fonction dédiée",null,null,"Configurer la carte d’entrée analogique\nConfigurer la carte de sortie analogique\nConfigurer la carte de comptage rapide\nConfigurer un variateur moteur"]
[null,null,"Réaliser un programme pour un contrôleur d’automatisme programmable",null,null,"Réaliser le programme de l’automate programmable\nRéaliser le programme de l’IHM"]
[null,null,"Effectuer la recette du programme en mode simulé",null,null,"Effectuer une simulation du programme de l’automate\nEffectuer une simulation du programme de l’IHM"]
[null,"BTS CRSA –  Fiche prévisionnelle de répartition des tâches détaillées \nSous-épreuve E62 : CONDUITE ET REALISATION D’UN PROJET                                                    \n",null,null,"Projet :"]
[null,"Session :","NOM et PRENOM du candidat :","Etablissement de formation : ",{"$f":"'Mode d''emploi'!B5","v":0}]
[null,{"$f":"'Mode d''emploi'!D1","v":2020},{"$f":"'Mode d''emploi'!B12","v":"ÉTUDIANT 4"},{"$f":"'Mode d''emploi'!C5","v":"Lycée Jules HAAG Besançon"}]
[null,"Compétence visée","Tâche ","Description du travail à réaliser par l’étudiant","Partie sous traitée ou réalisée par  une autre personne"]
[null,"C18 Réaliser, tester, intégrer tout ou partie d’un système automatique","Mettre à disposition des données dans un format spécifié",null,null,"Faire la liste des variables (tableau entrées/sorties) en indiquant leur type.\nTous les fichiers CAO, les schémas électriques, les schémas pneumatiques, les programmes seront sauvegardés au format natif des logiciels utilisés sur un dossier spécifique à la machine, sur le réseau de l'entreprise."]
[null,null,"Créer des vues pour l’exploitation du système automatique et pour les fonctions spécifiques",null,null,"Réaliser le programme de l’IHM\nRéaliser le synoptique de la machine\n"]
[null,null,"Associer, intégrer les assemblages",null,null,"Intégrer le module de nom module sur la machine"]
[null,null,"Réaliser les tests hors énergie",null,null,"Tester le module de nom module hors énergie"]
[null,null,"Intégrer des programmes hors ligne"]
[null,null,"Réaliser les tests sous énergies",null,null,"Réaliser la mise sous tension progressive de l'armoire électrique, tester les mouvements de chaque actionneurs, le fonctionnement des capteurs"]
[null,null,"Installer le système chez le client",null,null,"Livrer et installer la machine"]
[null,null,"Réaliser une mise à niveau de matériels et logiciels sur un existant"]
[null,"C19 Mettre en service\net valider la conformité\nd’une solution par\nrapport à son cahier\ndes charges\n","Mettre en service",null,null,"Mettre en service la machine"]
[null,null,"Effectuer les tests dynamiques de conformité",null,null,"Tester la machine en mode continu sur une période de 8h\nVérifier la cadence\nVérifier les exigences de qualité\nMesurer le bruit"]
[null,null,"Mettre à jour les dossiers",null,null,"Compléter le dossier machine en fonction des modifications effectuées lors de la mise au point\nMettre à jour le dossier technique (partie schéma électrique)\nMettre à jour le dossier technique (partie schéma pneumatique)\nMettre à jour le dossier technique (partie synoptique et liste des variables)\nMettre à jour le dossier d’exploitation\nMettre à jour le dossier maintenance"]
[null,"C21 Rendre compte sur\nles dispositions prises\nen matière de sécurité\net de développement\ndurable","Identifier les effluents, les déchets et les polluants d’un existant",null,null,"Identifier les phénomènes dangereux et les situations dangereuses du module de nom module"]
[null,null,"Déterminer les mesures de prévention ou de protection",null,null,"Déterminer les mesures de prévention ou de protection du module de nom module"]
[null,null,"Appliquer les mesures de prévention ou de protection",null,null,"Appliquer les mesures de prévention ou de protection du module de nom module\nRéaliser le câblage des arrets d'urgence, des gâches de portes"]
[null,null,"Identifier les phénomènes dangereux et les situations dangereuses",null,null,"Effectuer une analyse de risques "]
[null,null,"Évaluer les impacts environnementaux d’une solution envisagée"]
[null,"Chaque compétence C17, C18, C19, C21 doit OBLIGATOIREMENT être développée et correspondre à des tâches réelles confiées au candidat."]
[]
[null,"Remarque :"]
[null,"Toutes les fiches devront être mises à la disposition de la commission d’interrogation pour consultation."]
[]
[null,"\n"]

{"sheet":"E5","index":6,"n_rows":48,"n_cols":6,"rows_kept":48,"merged":[[0,1,0,3],[1,4,2,4],[4,1,10,1],[11,1,21,1],[22,1,22,3],[23,4,24,4],[26,1,33,1],[34,1,36,1],[37,1,41,1],[42,1,42,4]]}
[null,"BTS CRSA –  Fiche prévisionnelle de répartition des tâches détaillées \nSous-épreuve E62 : CONDUITE ET REALISATION D’UN PROJET                                                    \n",null,null,"Projet :"]
[null,"Session :","NOM et PRENOM du candidat :","Etablissement de formation : ",{"$f":"'Mode d''emploi'!B5","v":0}]
[null,{"$f":"'Mode d''emploi'!D1","v":2020},{"$f":"'Mode d''emploi'!B13","v":"ÉTUDIANT 5"},{"$f":"'Mode d''emploi'!C5","v":"Lycée Jules HAAG Besançon"}]
[null,"Compétence visée","Tâche ","Description du travail à réaliser par l’étudiant","Partie sous traitée ou réalisée par  une autre personne","Exemple de description"]
[null,"C17 Élaborer tout ou partie du dossier de réalisation, du dossier de tests et du dossier système remis au client","Établir les mises en plan",null,null,"Etablir les dessins d'ensemble du module de nom module\nEtablir les dessins d'ensemble du pupitre\nEtablir les dessins d'ensemble du bâti"]
[null,null,"Réaliser la cotation dimensionnelle, géométrique d’une pièce extraite d’un sous-ensemble",null,null,"Réaliser les dessins de définition des pièces du module de nom module\nRéaliser le dessin de définition du pupitre"]
[null,null,"Établir les procédures de tests",null,null,"Etablir les procédures de tests du module de nom module.\nRéaliser un prototype pour valider la solution technique"]
[null,null,"Établir les documents d’installation et d’intégration sur le site",null,null,"Etablir le dessin d'implantation de la machine dans son envirsonnement : génie civil (tranchées alimentation en énergie) travaux plomberie (évacuation d'eau, alimentation en eau)"]
[null,null,"Élaborer le dossier de réalisation",null,null,"Elaborer la partie schéma électrique\nElaborer la partie schéma pneumatique\nElaborer la partie synoptique et liste des variables\nElaborer la partie analyse des modes de marche\nElaborer la partie analyse du fonctionnement\nCréation du dossier machine avec tous les dessins d'ensemble, les dessins de définition, les devis, les schémas électriques, les documentations techniques des standards, les bordereaux de livraison\nElaborer le dossier de réalisation de ses activités\n"]
[null,null,"Élaborer le dossier d'exploitation",null,null,"Réaliser la notice d'utilisation de la machine"]
[null,null,"Élaborer le dossier de maintenance",null,null,"Elaborer le dossier de maintenance contenant les informations necessaires pour la maintenance de la machine (problèmes/solutions)."]
[null,"C18 Réaliser, tester, intégrer tout ou partie d’un système automatique","Lancer les approvisionnements des composants et des éléments sous-traités",null,null,"Lancer les approvisionnements des composants du module de nom module\nLancer les approvisionnements du pupitre\nLancer les approvisionnements des éléments sous-traitées du module de nom module\nLancer les approvisionnements des composants électriques\nLancer les approvisionnements des composants pneumatiques"]
[null,null,"Réceptionner et vérifier la conformité des réalisations internes ou sous-traitées",null,null,"Réceptionner et vérifier la conformité des pièces du module de nom module\nRéceptionner et vérifier la conformité du pupitre\nRéceptionner et vérifier la conformité du matériel électrique\nRéceptionner et vérifier la conformité du matériel pneumatique"]
[null,null,"Réaliser des opérations de fabrication",null,null,"Réaliser les pièces du module de nom module\nRéaliser le bâti\nRéaliser le pupitre"]
[null,null,"Réaliser un assemblage d’éléments",null,null,"Assembler les pièces du module de nom module"]
[null,null,"Implanter les constituants",null,null,"Implanter les composants de l’armoire électrique\nImplanter les composants du pupitre\nImplanter les composants pneumatiques (traitement d’air, distributeurs)"]
[null,null,"Réaliser les câblages et raccordements",null,null,"Réaliser le câblage de l’armoire électrique\nRéaliser le câblage pneumatique\nRéaliser le câblage du pupitre\nRéaliser le câblage électrique du module de nom module"]
[null,null,"Réaliser une recette partielle du câblage et des raccordements",null,null,"Réaliser les tests du câblage de l’armoire électrique \nRéaliser les tests du câblage pneumatique\nRéaliser les tests du câblage du pupitre\nRéaliser les tests du câblage du module de nom module"]
[null,null,"Configurer un contrôleur d’automatisme programmable, un réseau, une interface de dialogue homme - système, un système de supervision",null,null,"Configurer l’API\nConfigurer l’IHM"]
[null,null,"Configurer un composant d’automatisme assurant une fonction dédiée",null,null,"Configurer la carte d’entrée analogique\nConfigurer la carte de sortie analogique\nConfigurer la carte de comptage rapide\nConfigurer un variateur moteur"]
[null,null,"Réaliser un programme pour un contrôleur d’automatisme programmable",null,null,"Réaliser le programme de l’automate programmable\nRéaliser le programme de l’IHM"]
[null,null,"Effectuer la recette du programme en mode simulé",null,null,"Effectuer une simulation du programme de l’automate\nEffectuer une simulation du programme de l’IHM"]
[null,"BTS CRSA –  Fiche prévisionnelle de répartition des tâches détaillées \nSous-épreuve E62 : CONDUITE ET REALISATION D’UN PROJET                                                    \n",null,null,"Projet :"]
[null,"Session :","NOM et PRENOM du candidat :","Etablissement de formation : ",{"$f":"'Mode d''emploi'!B5","v":0}]
[null,{"$f":"'Mode d''emploi'!D1","v":2020},{"$f":"'Mode d''emploi'!B13","v":"ÉTUDIANT 5"},{"$f":"'Mode d''emploi'!C5","v":"Lycée Jules HAAG Besançon"}]
[null,"Compétence visée","Tâche ","Description du travail à réaliser par l’étudiant","Partie sous traitée ou réalisée par  une autre personne"]
[null,"C18 Réaliser, tester, intégrer tout ou partie d’un système automatique","Mettre à disposition des données dans un format spécifié",null,null,"Faire la liste des variables (tableau entrées/sorties) en indiquant leur type.\nTous les fichiers CAO, les schémas électriques, les schémas pneumatiques, les programmes seront sauvegardés au format natif des logiciels utilisés sur un dossier spécifique à la machine, sur le réseau de l'entreprise."]
[null,null,"Créer des vues pour l’exploitation du système automatique et pour les fonctions spécifiques",null,null,"Réaliser le programme de l’IHM\nRéaliser le synoptique de la machine\n"]
[null,null,"Associer, intégrer les assemblages",null,null,"Intégrer le module de nom module sur la machine"]
[null,null,"Réaliser les tests hors énergie",null,null,"Tester le module de nom module hors énergie"]
[null,null,"Intégrer des programmes hors ligne"]
[null,null,"Réaliser les tests sous énergies",null,null,"Réaliser la mise sous tension progressive de l'armoire électrique, tester les mouvements de chaque actionneurs, le fonctionnement des capteurs"]
[null,null,"Installer le système chez le client",null,null,"Livrer et installer la machine"]
[null,null,"Réaliser une mise à niveau de matériels et logiciels sur un existant"]
[null,"C19 Mettre en service\net valider la conformité\nd’une solution par\nrapport à son cahier\ndes charges\n","Mettre en service",null,null,"Mettre en service la machine"]
[null,null,"Effectuer les tests dynamiques de conformité",null,null,"Tester la machine en mode continu sur une période de 8h\nVérifier la cadence\nVérifier les exigences de qualité\nMesurer le bruit"]
[null,null,"Mettre à jour les dossiers",null,null,"Compléter le dossier machine en fonction des modifications effectuées lors de la mise au point\nMettre à jour le dossier technique (partie schéma électrique)\nMettre à jour le dossier technique (partie schéma pneumatique)\nMettre à jour le dossier technique (partie synoptique et liste des variables)\nMettre à jour le dossier d’exploitation\nMettre à jour le dossier maintenance"]
[null,"C21 Rendre compte sur\nles dispositions prises\nen matière de sécurité\net de développement\ndurable","Identifier les effluents, les déchets et les polluants d’un existant",null,null,"Identifier les phénomènes dangereux et les situations dangereuses du module de nom module"]
[null,null,"Déterminer les mesures de prévention ou de protection",null,null,"Déterminer les mesures de prévention ou de protection du module de nom module"]
[null,null,"Appliquer les mesures de prévention ou de protection",null,null,"Appliquer les mesures de prévention ou de protection du module de nom module\nRéaliser le câblage des arrets d'urgence, des gâches de portes"]
[null,null,"Identifier les phénomènes dangereux et les situations dangereuses",null,null,"Effectuer une analyse de risques "]
[null,null,"Évaluer les impacts environnementaux d’une solution envisagée"]
[null,"Chaque compétence C17, C18, C19, C21 doit OBLIGATOIREMENT être développée et correspondre à des tâches réelles confiées au candidat."]
[]
[null,"Remarque :"]
[null,"Toutes les fiches devront être mises à la disposition de la commission d’interrogation pour consultation."]
[]
[null,"\n"]

{"sheet":"E6","index":7,"n_rows":48,"n_cols":6,"rows_kept":48,"merged":[[0,1,0,3],[1,4,2,4],[4,1,10,1],[11,1,21,1],[22,1,22,3],[23,4,24,4],[26,1,33,1],[34,1,36,1],[37,1,41,1],[42,1,42,4]]}
[null,"BTS CRSA –  Fiche prévisionnelle de répartition des tâches détaillées \nSous-épreuve E62 : CONDUITE ET REALISATION D’UN PROJET                                                    \n",null,null,"Projet :"]
[null,"Session :","NOM et PRENOM du candidat :","Etablissement de formation : ",{"$f":"'Mode d''emploi'!B5","v":0}]
[null,{"$f":"'Mode d''emploi'!D1","v":2020},{"$f":"'Mode d''emploi'!B14","v":"ÉTUDIANT 6"},{"$f":"'Mode d''emploi'!C5","v":"Lycée Jules HAAG Besançon"}]
[null,"Compétence visée","Tâche ","Description du travail à réaliser par l’étudiant","Partie sous traitée ou réalisée par  une autre personne","Exemple de description"]
[null,"C17 Élaborer tout ou partie du dossier de réalisation, du dossier de tests et du dossier système remis au client","Établir les mises en plan",null,null,"Etablir les dessins d'ensemble du module de nom module\nEtablir les dessins d'ensemble du pupitre\nEtablir les dessins d'ensemble du bâti"]
[null,null,"Réaliser la cotation dimensionnelle, géométrique d’une pièce extraite d’un sous-ensemble",null,null,"Réaliser les dessins de définition des pièces du module de nom module\nRéaliser le dessin de définition du pupitre"]
[null,null,"Établir les procédures de tests",null,null,"Etablir les procédures de tests du module de nom module.\nRéaliser un prototype pour valider la solution technique"]
[null,null,"Établir les documents d’installation et d’intégration sur le site",null,null,"Etablir le dessin d'implantation de la machine dans son envirsonnement : génie civil (tranchées alimentation en énergie) travaux plomberie (évacuation d'eau, alimentation en eau)"]
[null,null,"Élaborer le dossier de réalisation",null,null,"Elaborer la partie schéma électrique\nElaborer la partie schéma pneumatique\nElaborer la partie synoptique et liste des variables\nElaborer la partie analyse des modes de marche\nElaborer la partie analyse du fonctionnement\nCréation du dossier machine avec tous les dessins d'ensemble, les dessins de définition, les devis, les schémas électriques, les documentations techniques des standards, les bordereaux de livraison\nElaborer le dossier de réalisation de ses activités\n"]
[null,null,"Élaborer le dossier d'exploitation",null,null,"Réaliser la notice d'utilisation de la machine"]
[null,null,"Élaborer le dossier de maintenance",null,null,"Elaborer le dossier de maintenance contenant les informations necessaires pour la maintenance de la machine (problèmes/solutions)."]
[null,"C18 Réaliser, tester, intégrer tout ou partie d’un système automatique","Lancer les approvisionnements des composants et des éléments sous-traités",null,null,"Lancer les approvisionnements des composants du module de nom module\nLancer les approvisionnements du pupitre\nLancer les approvisionnements des éléments sous-traitées du module de nom module\nLancer les approvisionnements des composants électriques\nLancer les approvisionnements des composants pneumatiques"]
[null,null,"Réceptionner et vérifier la conformité des réalisations internes ou sous-traitées",null,null,"Réceptionner et vérifier la conformité des pièces du module de nom module\nRéceptionner et vérifier la conformité du pupitre\nRéceptionner et vérifier la conformité du matériel électrique\nRéceptionner et vérifier la conformité du matériel pneumatique"]
[null,null,"Réaliser des opérations de fabrication",null,null,"Réaliser les pièces du module de nom module\nRéaliser le bâti\nRéaliser le pupitre"]
[null,null,"Réaliser un assemblage d’éléments",null,null,"Assembler les pièces du module de nom module"]
[null,null,"Implanter les constituants",null,null,"Implanter les composants de l’armoire électrique\nImplanter les composants du pupitre\nImplanter les composants pneumatiques (traitement d’air, distributeurs)"]
[null,null,"Réaliser les câblages et raccordements",null,null,"Réaliser le câblage de l’armoire électrique\nRéaliser le câblage pneumatique\nRéaliser le câblage du pupitre\nRéaliser le câblage électrique du module de nom module"]
[null,null,"Réaliser une recette partielle du câblage et des raccordements",null,null,"Réaliser les tests du câblage de l’armoire électrique \nRéaliser les tests du câblage pneumatique\nRéaliser les tests du câblage du pupitre\nRéaliser les tests du câblage du module de nom module"]
[null,null,"Configurer un contrôleur d’automatisme programmable, un réseau, une interface de dialogue homme - système, un système de supervision",null,null,"Configurer l’API\nConfigurer l’IHM"]
[null,null,"Configurer un composant d’automatisme assurant une fonction dédiée",null,null,"Configurer la carte d’entrée analogique\nConfigurer la carte de sortie analogique\nConfigurer la carte de comptage rapide\nConfigurer un variateur moteur"]
[null,null,"Réaliser un programme pour un contrôleur d’automatisme programmable",null,null,"Réaliser le programme de l’automate programmable\nRéaliser le programme de l’IHM"]
[null,null,"Effectuer la recette du programme en mode simulé",null,null,"Effectuer une simulation du programme de l’automate\nEffectuer une simulation du programme de l’IHM"]
[null,"BTS CRSA –  Fiche prévisionnelle de répartition des tâches détaillées \nSous-épreuve E62 : CONDUITE ET REALISATION D’UN PROJET                                                    \n",null,null,"Projet :"]
[null,"Session :","NOM et PRENOM du candidat :","Etablissement de formation : ",{"$f":"'Mode d''emploi'!B5","v":0}]
[null,{"$f":"'Mode d''emploi'!D1","v":2020},{"$f":"'Mode d''emploi'!B14","v":"ÉTUDIANT 6"},{"$f":"'Mode d''emploi'!C5","v":"Lycée Jules HAAG Besançon"}]
[null,"Compétence visée","Tâche ","Description du travail à réaliser par l’étudiant","Partie sous traitée ou réalisée par  une autre personne"]
[null,"C18 Réaliser, tester, intégrer tout ou partie d’un système automatique","Mettre à disposition des données dans un format spécifié",null,null,"Faire la liste des variables (tableau entrées/sorties) en indiquant leur type.\nTous les fichiers CAO, les schémas électriques, les schémas pneumatiques, les programmes seront sauvegardés au format natif des logiciels utilisés sur un dossier spécifique à la machine, sur le réseau de l'entreprise."]
[null,null,"Créer des vues pour l’exploitation du système automatique et pour les fonctions spécifiques",null,null,"Réaliser le programme de l’IHM\nRéaliser le synoptique de la machine\n"]
[null,null,"Associer, intégrer les assemblages",null,null,"Intégrer le module de nom module sur la machine"]
[null,null,"Réaliser les tests hors énergie",null,null,"Tester le module de nom module hors énergie"]
[null,null,"Intégrer des programmes hors ligne"]
[null,null,"Réaliser les tests sous énergies",null,null,"Réaliser la mise sous tension progressive de l'armoire électrique, tester les mouvements de chaque actionneurs, le fonctionnement des capteurs"]
[null,null,"Installer le système chez le client",null,null,"Livrer et installer la machine"]
[null,null,"Réaliser une mise à niveau de matériels et logiciels sur un existant"]
[null,"C19 Mettre en service\net valider la conformité\nd’une solution par\nrapport à son cahier\ndes charges\n","Mettre en service",null,null,"Mettre en service la machine"]
[null,null,"Effectuer les tests dynamiques de conformité",null,null,"Tester la machine en mode continu sur une période de 8h\nVérifier la cadence\nVérifier les exigences de qualité\nMesurer le bruit"]
[null,null,"Mettre à jour les dossiers",null,null,"Compléter le dossier machine en fonction des modifications effectuées lors de la mise au point\nMettre à jour le dossier technique (partie schéma électrique)\nMettre à jour le dossier technique (partie schéma pneumatique)\nMettre à jour le dossier technique (partie synoptique et liste des variables)\nMettre à jour le dossier d’exploitation\nMettre à jour le dossier maintenance"]
[null,"C21 Rendre compte sur\nles dispositions prises\nen matière de sécurité\net de développement\ndurable","Identifier les effluents, les déchets et les polluants d’un existant",null,null,"Identifier les phénomènes dangereux et les situations dangereuses du module de nom module"]
[null,null,"Déterminer les mesures de prévention ou de protection",null,null,"Déterminer les mesures de prévention ou de protection du module de nom module"]
[null,null,"Appliquer les mesures de prévention ou de protection",null,null,"Appliquer les mesures de prévention ou de protection du module de nom module\nRéaliser le câblage des arrets d'urgence, des gâches de portes"]
[null,null,"Identifier les phénomènes dangereux et les situations dangereuses",null,null,"Effectuer une analyse de risques "]
[null,null,"Évaluer les impacts environnementaux d’une solution envisagée"]
[null,"Chaque compétence C17, C18, C19, C21 doit OBLIGATOIREMENT être développée et correspondre à des tâches réelles confiées au candidat."]
[]
[null,"Remarque :"]
[null,"Toutes les fiches devront être mises à la disposition de la commission d’interrogation pour consultation."]
[]
[null,"\n"]

{"sheet":"E7","index":8,"n_rows":48,"n_cols":6,"rows_kept":48,"merged":[[0,1,0,3],[1,4,2,4],[4,1,10,1],[11,1,21,1],[22,1,22,3],[23,4,24,4],[26,1,33,1],[34,1,36,1],[37,1,41,1],[42,1,42,4]]}
[null,"BTS CRSA –  Fiche prévisionnelle de répartition des tâches détaillées \nSous-épreuve E62 : CONDUITE ET REALISATION D’UN PROJET                                                    \n",null,null,"Projet :"]
[null,"Session :","NOM et PRENOM du candidat :","Etablissement de formation : ",{"$f":"'Mode d''emploi'!B5","v":0}]
[null,{"$f":"'Mode d''emploi'!D1","v":2020},{"$f":"'Mode d''emploi'!B15","v":"ÉTUDIANT 7"},{"$f":"'Mode d''emploi'!C5","v":"Lycée Jules HAAG Besançon"}]
[null,"Compétence visée","Tâche ","Description du travail à réaliser par l’étudiant","Partie sous traitée ou réalisée par  une autre personne","Exemple de description"]
[null,"C17 Élaborer tout ou partie du dossier de réalisation, du dossier de tests et du dossier système remis au client","Établir les mises en plan",null,null,"Etablir les dessins d'ensemble du module de nom module\nEtablir les dessins d'ensemble du pupitre\nEtablir les dessins d'ensemble du bâti"]
[null,null,"Réaliser la cotation dimensionnelle, géométrique d’une pièce extraite d’un sous-ensemble",null,null,"Réaliser les dessins de définition des pièces du module de nom module\nRéaliser le dessin de définition du pupitre"]
[null,null,"Établir les procédures de tests",null,null,"Etablir les procédures de tests du module de nom module.\nRéaliser un prototype pour valider la solution technique"]
[null,null,"Établir les documents d’installation et d’intégration sur le site",null,null,"Etablir le dessin d'implantation de la machine dans son envirsonnement : génie civil (tranchées alimentation en énergie) travaux plomberie (évacuation d'eau, alimentation en eau)"]
[null,null,"Élaborer le dossier de réalisation",null,null,"Elaborer la partie schéma électrique\nElaborer la partie schéma pneumatique\nElaborer la partie synoptique et liste des variables\nElaborer la partie analyse des modes de marche\nElaborer la partie analyse du fonctionnement\nCréation du dossier machine avec tous les dessins d'ensemble, les dessins de définition, les devis, les schémas électriques, les documentations techniques des standards, les bordereaux de livraison\nElaborer le dossier de réalisation de ses activités\n"]
[null,null,"Élaborer le dossier d'exploitation",null,null,"Réaliser la notice d'utilisation de la machine"]
[null,null,"Élaborer le dossier de maintenance",null,null,"Elaborer le dossier de maintenance contenant les informations necessaires pour la maintenance de la machine (problèmes/solutions)."]
[null,"C18 Réaliser, tester, intégrer tout ou partie d’un système automatique","Lancer les approvisionnements des composants et des éléments sous-traités",null,null,"Lancer les approvisionnements des composants du module de nom module\nLancer les approvisionnements du pupitre\nLancer les approvisionnements des éléments sous-traitées du module de nom module\nLancer les approvisionnements des composants électriques\nLancer les approvisionnements des composants pneumatiques"]
[null,null,"Réceptionner et vérifier la conformité des réalisations internes ou sous-traitées",null,null,"Réceptionner et vérifier la conformité des pièces du module de nom module\nRéceptionner et vérifier la conformité du pupitre\nRéceptionner et vérifier la conformité du matériel électrique\nRéceptionner et vérifier la conformité du matériel pneumatique"]
[null,null,"Réaliser des opérations de fabrication",null,null,"Réaliser les pièces du module de nom module\nRéaliser le bâti\nRéaliser le pupitre"]
[null,null,"Réaliser un assemblage d’éléments",null,null,"Assembler les pièces du module de nom module"]
[null,null,"Implanter les constituants",null,null,"Implanter les composants de l’armoire électrique\nImplanter les composants du pupitre\nImplanter les composants pneumatiques (traitement d’air, distributeurs)"]
[null,null,"Réaliser les câblages et raccordements",null,null,"Réaliser le câblage de l’armoire électrique\nRéaliser le câblage pneumatique\nRéaliser le câblage du pupitre\nRéaliser le câblage électrique du module de nom module"]
[null,null,"Réaliser une recette partielle du câblage et des raccordements",null,null,"Réaliser les tests du câblage de l’armoire électrique \nRéaliser les tests du câblage pneumatique\nRéaliser les tests du câblage du pupitre\nRéaliser les tests du câblage du module de nom module"]
[null,null,"Configurer un contrôleur d’automatisme programmable, un réseau, une interface de dialogue homme - système, un système de supervision",null,null,"Configurer l’API\nConfigurer l’IHM"]
[null,null,"Configurer un composant d’automatisme assurant une fonction dédiée",null,null,"Configurer la carte d’entrée analogique\nConfigurer la carte de sortie analogique\nConfigurer la carte de comptage rapide\nConfigurer un variateur moteur"]
[null,null,"Réaliser un programme pour un contrôleur d’automatisme programmable",null,null,"Réaliser le programme de l’automate programmable\nRéaliser le programme de l’IHM"]
[null,null,"Effectuer la recette du programme en mode simulé",null,null,"Effectuer une simulation du programme de l’automate\nEffectuer une simulation du programme de l’IHM"]
[null,"BTS CRSA –  Fiche prévisionnelle de répartition des tâches détaillées \nSous-épreuve E62 : CONDUITE ET REALISATION D’UN PROJET                                                    \n",null,null,"Projet :"]
[null,"Session :","NOM et PRENOM du candidat :","Etablissement de formation : ",{"$f":"'Mode d''emploi'!B5","v":0}]
[null,{"$f":"'Mode d''emploi'!D1","v":2020},{"$f":"'Mode d''emploi'!B14","v":"ÉTUDIANT 6"},{"$f":"'Mode d''emploi'!C5","v":"Lycée Jules HAAG Besançon"}]
[null,"Compétence visée","Tâche ","Description du travail à réaliser par l’étudiant","Partie sous traitée ou réalisée par  une autre personne"]
[null,"C18 Réaliser, tester, intégrer tout ou partie d’un système automatique","Mettre à disposition des données dans un format spécifié",null,null,"Faire la liste des variables (tableau entrées/sorties) en indiquant leur type.\nTous les fichiers CAO, les schémas électriques, les schémas pneumatiques, les programmes seront sauvegardés au format natif des logiciels utilisés sur un dossier spécifique à la machine, sur le réseau de l'entreprise."]
[null,null,"Créer des vues pour l’exploitation du système automatique et pour les fonctions spécifiques",null,null,"Réaliser le programme de l’IHM\nRéaliser le synoptique de la machine\n"]
[null,null,"Associer, intégrer les assemblages",null,null,"Intégrer le module de nom module sur la machine"]
[null,null,"Réaliser les tests hors énergie",null,null,"Tester le module de nom module hors énergie"]
[null,null,"Intégrer des programmes hors ligne"]
[null,null,"Réaliser les tests sous énergies",null,null,"Réaliser la mise sous tension progressive de l'armoire électrique, tester les mouvements de chaque actionneurs, le fonctionnement des capteurs"]
[null,null,"Installer le système chez le client",null,null,"Livrer et installer la machine"]
[null,null,"Réaliser une mise à niveau de matériels et logiciels sur un existant"]
[null,"C19 Mettre en service\net valider la conformité\nd’une solution par\nrapport à son cahier\ndes charges\n","Mettre en service",null,null,"Mettre en service la machine"]
[null,null,"Effectuer les tests dynamiques de conformité",null,null,"Tester la machine en mode continu sur une période de 8h\nVérifier la cadence\nVérifier les exigences de qualité\nMesurer le bruit"]
[null,null,"Mettre à jour les dossiers",null,null,"Compléter le dossier machine en fonction des modifications effectuées lors de la mise au point\nMettre à jour le dossier technique (partie schéma électrique)\nMettre à jour le dossier technique (partie schéma pneumatique)\nMettre à jour le dossier technique (partie synoptique et liste des variables)\nMettre à jour le dossier d’exploitation\nMettre à jour le dossier maintenance"]
[null,"C21 Rendre compte sur\nles dispositions prises\nen matière de sécurité\net de développement\ndurable","Identifier les effluents, les déchets et les polluants d’un existant",null,null,"Identifier les phénomènes dangereux et les situations dangereuses du module de nom module"]
[null,null,"Déterminer les mesures de prévention ou de protection",null,null,"Déterminer les mesures de prévention ou de protection du module de nom module"]
[null,null,"Appliquer les mesures de prévention ou de protection",null,null,"Appliquer les mesures de prévention ou de protection du module de nom module\nRéaliser le câblage des arrets d'urgence, des gâches de portes"]
[null,null,"Identifier les phénomènes dangereux et les situations dangereuses",null,null,"Effectuer une analyse de risques "]
[null,null,"Évaluer les impacts environnementaux d’une solution envisagée"]
[null,"Chaque compétence C17, C18, C19, C21 doit OBLIGATOIREMENT être développée et correspondre à des tâches réelles confiées au candidat."]
[]
[null,"Remarque :"]
[null,"Toutes les fiches devront être mises à la disposition de la commission d’interrogation pour consultation."]
[]
[null,"\n"]